{"text_format":"1","workbook":"xlsx","n_sheets":4,"sheets":["Roles","I parte","II parte","seguimiento"],"not_rendered":{"charts":1,"images":0,"macros":0,"external_links":0,"defined_names":38,"comments":0,"pivot_tables":0},"unopened":[],"bounds":{"document_bytes":16777216,"sheet_cells":100000,"rows_first":2000,"rows_last":500,"rows_between":2000,"halvings":0,"cell_chars":16384,"cell_head_chars":4096},"cells_cut":0,"cells_raw":0,"read":"whole","date_system":"1900"}

{"sheet":"Roles","index":0,"n_rows":36,"n_cols":6,"rows_kept":36,"cut":false,"hidden":false,"merged":[[1,1,1,2],[11,1,11,2],[16,1,16,2],[34,1,34,2],[22,1,22,2],[28,1,28,2]]}
[]
[null,"INFORMACIÓN SOBRE EL TRÁMITE O SERVICIO"]
[null,"Nombre del trámite o servicio:","Requerimiento para un intermediario financiero, Grupo o Conglomerado Financiero o sujeto obligado según el artículo 15 de la Ley 8204 sobre la actualización de información de puestos requerida en los Acuerdos normativos vigentes y el Manual de SICVECA"]
[null,"Institución:","Superintendencia General de Entidades Financieras."]
[null,"Dependencia:","Oficina Central"]
[null,"Dirección de la dependencia, sus sucursales y horarios:","Dirección: San José, Santa Ana, Lindora, Parque Empresarial Forum II, edificio C.\nTeléfono: 2243-4848.\nTelefax:   2243-4849.\nHorario de Atención: lunes a viernes, de las 8:30 a.m. a las 4:30 p.m., en jornada continua."]
[null,"Licencia, autorización o permiso que se obtiene en el trámite o servicio:","No aplica"]
[null,"Requisitos","Fundamento Legal"]
[null,"Requerimiento para un intermediario financiero, Grupo o Conglomerado Financiero o sujeto obligado según el artículo 15 de la Ley 8204 sobre la actualización de información de puestos requerida en los Acuerdos normativos vigentes y el Manual de SICVECA","1) Acuerdo SUGEF 8-08 : Anexo 1 D. Miembros de la Junta Directiva, Gerente, Subgerentes, Auditor interno y Oficial de cumplimiento\n2) Acuerdo SUGEF 8-08 :  Anexo 2 II.C Directorio o consejo de administración, gerente, subgerentes y auditor interno y oficial de cumplimiento\n3) Acuerdo SUGEF 8-08 :  Anexo 12 Declaración Jurada - Directores, Gerente general, Subgerentes, Auditor interno y Oficial de cumplimiento\n4) Acuerdo SUGEF 8-08 :  Anexo 13 Declaración jurada de socios\n5) Acuerdo SUGEF 8-08 : Anexo 8 B.Información sobre la estructura de propiedad de cada una de las empresas del grupo\n6) Acuerdo SUGEF 8-08 : Artículo 15 Actualización de los registros del supervisor responsable\n6) Acuerdo SUGEF 11-06: Artículo 2 Requisitos para la autorización de la inscripción\n7) Acuerdo SUGEF 11-06: Artículo 10 Obligaciones de información de las personas inscritas ante la SUGEF\n8) Acuerdo SUGEF 32-10: Artículo 14 Comunicación de nombramiento y demostración del cumplimiento de los requisitos y condiciones\n9) Manual de información de SICVECA: Registro y Control\n10) Manual de información de SICVECA: Registro y Control Grupos"]
[null,"II. DOCUMENTACIÓN QUE DEBE ACOMPAÑAR LA SOLICITUD:"]
[null,"La documentación que debe presentarse esta indicada en el Acuerdo SUGEF 8-08 , Acuerdo SUGEF 11-06, Acuerdo SUGEF 32-10."]
[null,"Si desea revisar leyes y decretos los puede encontrar en la página de la Procuraduría General de la República http://www.pgrweb.go.cr/Scij/ o si es alguna otra disposición o manual lo puede hacer en la página del Diario Oficial La Gaceta http://www.imprenal.go.cr/gaceta/"]
[null,"Plazo de resolución:","30 días naturales."]
[null,"Vigencia:","Otro: Indefinido."]
[null,"Costo del trámite o servicio:","No tiene costo."]
[null,"Formulario(s) que se debe(n) presentar:","No aplica."]
[null,"Funcionario #1 Contacto"]
[null,"Oficina o Sucursal:","Central (Estadísticas y Publicaciones)."]
[null,"Nombre:","Christian Vega Céspedes"]
[null,"Email:","cvega@sugef.fi.cr "]
[null,"Teléfono:","2243-5009"]
[null,"Fax:"]
[null,"Funcionario #2 Contacto"]
[null,"Oficina o Sucursal:","Central (Cumplimiento de la Ley 8204)."]
[null,"Nombre:","Manrique López Soto"]
[null,"Email:","mlopez@sugef.fi.cr"]
[null,"Teléfono:","2243-4770"]
[null,"Fax:"]
[null,"Funcionario #3 Contacto"]
[null,"Oficina o Sucursal:","Central (Usuario Responsable)."]
[null,"Nombre:","Elvis Jiménez Gutierrez"]
[null,"Email:","ejimenez@sugef.fi.cr"]
[null,"Teléfono:","2243-5025"]
[null,"Fax:"]
[null,"Nota: El plazo de resolución indicado, corresponde al plazo de 1 mes que se estipula en el artículo 331 de la Ley General de Administración Pública (Ley 6227)."]
[null,null,null,null,null,"Manrique López Soto"]

{"sheet":"I parte","index":1,"n_rows":28,"n_cols":7,"rows_kept":28,"cut":false,"hidden":false,"merged":[[10,1,10,9],[1,1,1,9],[3,1,4,9],[6,1,9,9],[5,1,5,9],[2,1,2,9],[11,1,12,9],[18,1,19,9],[21,1,22,9],[17,1,17,9],[20,1,20,9],[14,5,16,5],[13,1,13,9],[14,6,14,9],[15,1,15,2],[15,6,16,9],[16,1,16,2],[14,1,14,4],[27,1,28,9],[29,1,29,9],[26,1,26,9],[23,1,23,9],[24,1,25,9]]}
[]
[null,"HOJA DE RUTA"]
[]
[null,"TRÁMITE O SERVICIO: \nRequerimiento para un intermediario financiero, Grupo o Conglomerado Financiero o sujeto obligado según el artículo 15 de la Ley 8204 sobre la actualización de información de puestos requerida en los Acuerdos normativos vigentes y el Manual de SICVECA."]
[]
[]
[null,"DESCRIPCIÓN DE LA REFORMA:  Introducir aspectos de mejora en el Servicio de Registro y Actualización de Roles tales como: validaciones, tareas automáticas, mejoras a notificaciones, nuevos roles, entre otros. "]
[]
[]
[]
[]
[null,"FUENTE: En el 2015 la SUGEF contó con la asesoría de una firma consultora externa para analizar la estructura organizacional de la entidad, incluyendo los procesos que realiza. El informe de esa asesoría señala varias mejoras sobre los procesos de gestión que acompañan trámites. Posteriormente,  la SUGEF realizó internamente un diagnóstico para  identificar  la totalidad de los trámites que son su responsabilidad, al amparo de las leyes y reglamentos, y los clasificó atendiendo varios criterios, incluyendo la frecuencia de realización. Este diagnóstico está sustentando la formulación de un proyecto estratégico institucional, con el objetivo de cumplir con la Ley de “Protección al ciudadano del exceso de requisitos y trámites administrativos”, Ley 8220, y, consecuentemente, proponer mejoras a los procesos de gestión de trámites con la finalidad de buscar su eficiencia y brindar un mejor servicio al cliente."]
[]
[]
[null,"PLAZO DE IMPLEMENTACIÓN: ",null,null,null,null,"IMPACTO: "]
[null,"INICIO",null,"FINAL","DURACIÓN",null,". Mejorar las funcionalidades del  Servicio de Registro y Actualización de Roles que potenciarán la utilidad de la herramienta y  del proceso de revelación y actualización de roles ."]
[null,{"$f":"+'II parte'!G9","v":"2017-04-03"},null,{"$f":"+'II parte'!H18","v":"2017-06-30"},{"$f":"+D17-B17","v":88}]
[]
[null,"LÍDER: Mauricio Meza Ramírez - Oficial de simplificación de trámites (mmeza@sugef.fi.cr)"]
[]
[]
[null,"EQUIPO QUE ACOMPAÑA/PARTICIPA:  Gabriela Amador Mata (gamador@sugef.fi.cr) ; Eduardo Montoya Solano (emontoya@sugef.fi.cr); Luis Álvarez Chavarría (alvarezcl@bccr.fi.cr); Johnny Castro González( castroqj@bccr.fi.cr)"]
[]
[]
[null,"PRÓXIMOS PASOS:  "]
[]
[]
[null,"REQUERIMIENTO EN RECURSOS:  Personal de la SUGEF y BCCR asignado a la reforma integral de los procesos asociados a la actualización de información de puestos por parte de las entidades , según la dedicación requerida,  y los recursos tecnológicos."]

{"sheet":"II parte","index":2,"n_rows":29,"n_cols":11,"rows_kept":29,"cut":false,"hidden":false,"merged":[[28,4,35,31],[1,0,4,10],[8,1,8,4]]}
[]
["Planificador del proyecto"]
[]
[]
[]
[]
["No.",null,null,null,"ACTIVIDAD","Equipo responsable","Fecha de inicio","Fecha final","DURACIÓN","Días efectivos","Porcentaje de avance"]
[null,null,null,null,null,null,null,null,null,null,{"$f":"+(K10+K15+K18)/3","v":0}]
[null,"Servicio de Registro y Actualización de Roles- Fase II",null,null,null,null,{"$f":"+G10","v":"2017-04-03"},{"$f":"+H27","v":"2017-06-30"},{"$f":"+H9-G9","v":88},{"$f":"+J15+J18+J10","v":94}]
[null,null,"Análisis de ajustes y validaciones",null,null,null,{"$f":"+G11","v":"2017-04-03"},{"$f":"+H13","v":"2017-04-21"},{"$f":"+H10-G10","v":18},20,{"$f":"+K11+K12+K13+K14","v":0}]
[null,null,null,null,"Identificación  de nuevos requerimientos","Gabriela Amador, Luis Álvarez, Johnny Castro, Eduardo Montoya","2017-04-03","2017-04-07",{"$f":"+H11-G11","v":4},5,0]
[null,null,null,null,"Identificación de validaciones","Gabriela Amador, Luis Álvarez, Johnny Castro, Eduardo Montoya","2017-04-17","2017-04-21",{"$f":"+H12-G12","v":4},5,0]
[null,null,null,null,"Identificación de cambios en la Resolución","Gabriela Amador","2017-04-17","2017-04-21",{"$f":"+H13-G13","v":4},5,0]
[null,null,null,null,"Identificación de cambios en procedimientos","Evelyn López","2017-04-17","2017-04-21",4,5,0]
[null,null,"Pilotos - Propuesta de mejora ",null,null,null,{"$f":"+G16","v":"2017-05-02"},{"$f":"+H17","v":"2017-05-12"},{"$f":"+H15-G15","v":10},{"$f":"+SUM(J16:J17)","v":9},{"$f":"+K16+K17","v":0}]
[null,null,null,null,"Piloto de ajustes en la  dinámica del proceso ","Gabriela Amador, Luis Álvarez, Johnny Castro, Eduardo Montoya, Guido Cordero","2017-05-02","2017-05-09",{"$f":"+H16-G16","v":7},6,0]
[null,null,null,null,"Aprobación de pilotos","Mauricio Meza, Javier Cascante","2017-05-10","2017-05-12",{"$f":"+H17-G17","v":2},3,0]
[null,"Implementación del proceso de simplificación de trámites",null,null,null,null,{"$f":"+G19","v":"2017-04-17"},{"$f":"+H27","v":"2017-06-30"},{"$f":"+H18-G18","v":74},{"$f":"+J19","v":65},{"$f":"+K19+K20+K21+K22+K23+K24+K25+K26+K27","v":0}]
[null,null,null,null,"Iteraciones","Luis Álvarez, Johnny Castro","2017-04-17","2017-06-30",{"$f":"+H19-G19","v":74},65,0]
[null,null,null,null,"Documentación del proyecto","Gabriela Amador","2017-04-03","2017-04-22",{"$f":"+H20-G20","v":19},10,0]
[null,null,null,null,"Revisión y ajuste de ayudas en línea","Eduardo Montoya","2017-05-29","2017-06-05",7,6,0]
[null,null,null,null,"Capacitación a las entidades ","Eduardo Montoya, Gabriela Amador","2017-06-12","2017-06-16",4,5,0]
[null,null,null,null,"Capacitación funcionarios SUGEF","Eduardo Montoya, Gabriela Amador","2017-06-05","2017-06-09",4,5,0]
[null,null,null,null,"Procedimientos internos","Evelyn López","2017-05-29","2017-06-09",11,10,0]
[null,null,null,null,"Ajustes a la Resolución normativa ","Gabriela Amador","2017-05-15","2017-06-02",18,15,0]
[null,null,null,null,"Pruebas de aceptación","Eduardo Montoya","2017-06-01","2017-06-16",15,12,0]
[null,null,null,null,"I liberación del servicio","Luis Álvarez, Johnny Castro","2017-06-30","2017-06-30",{"$f":"+H27-G27","v":0},1,0]
[" "]
[null,null,null,null,"NOTA:\nSiempre será necesario hacer un ajuste en el gráfico para que se ajuste la fecha inicial de la primera barra al primer día del proyecto, para ello seguir los siguientes pasos:\n\n- La primera actividad en iniciar es la actividad 1 y para colocar dicha barra justo a la fecha de inicio del eje debemos obtener el valor numérico de su fecha de inicio. \n\n- El valor numérico se conoce haciendo clic derecho sobre la celda de la fecha de inicio de la actividad 1, allí elegir la opción Formato de celda y cambiar temporalmente la opción de Categoría a Número. Sin hacer clic en el botón Aceptar se puede observar en la sección Muestra que el valor numérico para esa fecha (por ejemplo 40544). Es necesario anotar ese número para colocarlo como valor de inicio en el gráfico, y luego cerrar el cuadro de diálogo.\n\n- Luego de cerrar el cuadro de diálogo Formato de celdas, se selecciona las etiquetas del eje horizontal dando clic derecho al eje para seleccionar la opción Dar formato a eje. Aparecerá el cuadro de diálogo Dar formato a eje y en la sección Mínima selecciona la opción Fija y coloca el valor numérico de la fecha de la actividad 1 que acabamos de obtener (en nuestro ejemplo es el valor 40544) y dar Aceptar e inmediatamente se ajusta la fecha de la barra horizontal al inicio del proyecto.\n\n"]

{"sheet":"seguimiento","index":3,"n_rows":14,"n_cols":5,"rows_kept":14,"cut":false,"hidden":false,"merged":[[10,3,10,4],[11,1,11,4],[12,1,12,4],[13,1,13,4],[0,1,1,4],[7,1,7,2],[7,3,7,4],[8,1,8,2],[8,3,8,4],[9,3,9,4]]}
[null,"HOJA RESUMEN DEL REPORTE DE AVANCE"]
[]
[null,"TRÁMITE O SERVICIO","Actualización de información de puestos de las entidades financieras, Grupos y Conglomerados y sujetos obligados según artículo 15","FECHA DE CUMPLIMIENTO DE TODAS LAS META:","2017-06-30"]
[null,"DESCRIPCIÓN DE LA REFORMA:","Introducir aspectos de mejora en el Servicio de Registro y Actualización de Roles tales como: validaciones, tareas automáticas, mejoras a notificaciones, nuevos roles, entre otros. ","IMPACTO ESPERADO:","Mejorar las funcionalidades del  Servicio de Registro y Actualización de Roles que potenciarán la utilidad de la herramienta y  del proceso de revelación y actualización de roles ."]
[null,"ENTIDAD A CARGO:","Superintendencia General de Entidades Financieras (SUGEF).","PERSONA CONTACTO: ","Mauricio Meza Ramírez, Oficial de simplificación de trámites\nmmeza@sugef.fi.cr"]
[null,"FECHA DEL REPORTE:",null,"PORCENTAJE DE AVANCE:"]
[null,"AVANCE CUALITATIVO:","De acuerdo con lo programado (   x  )","Con riesgo de incumplimiento (    )","Atraso Crítico (    )"]
[null,"RESULTADO ESPERADO PARA ESTA FECHA",null,"LOGROS OBTENIDOS A LA FECHA "]
[]
[null,"¿EXISTEN ALERTAS QUE REQUIERAN LA COLABORACIÓN DEL MEIC O DEL CONSEJO PRESIDENCIAL DE COMPETITIVIDAD E INNOVACIÓN?","☐ SI          X NO","¿CUÁL (ES)? ___________________________________________"]
[null,"¿SE ADJUNTAN DOCUMENTOS  SOPORTE?","☐ SI          X NO","¿CUÁL (ES)? ___________________________________________"]
[null,"¿CUÁL ES EL RESULTADO ESPERADO PARA DENTRO DE UN MES?"]
[]
[null,"NOTA: Se debe adjuntar el \"Planificador del proyecto\" donde se demuestra el avance de las actividades y por ende el porcentaje de avance general de la reforma."]